Cogmind - Beta 13 @@@ ROGUE MODE // 2024.04.12 @ 14:41:02 Player: Bearly Playable Result: Self-destructed Performance ------------- Evolutions (1) 500 Regions Visited (4) 800 Robots Destroyed (32) 160 Value Destroyed (869) 869 Prototype IDs (2) 40 Alien Tech Used (0) 0 Bonus (16) 16 TOTAL SCORE: 2385 Bonus ------- High Alert Combat Kills 16 Cogmind --------- Core Integrity 296/400 Matter 217/300 Energy 247/250 System Corruption 1% Temperature Cool (88) Movement Hovering (112) Ox1 Location -9/Mines Parts ------- > --- POWER (1) -------- Ion Engine > --- PROPULSION (3) --- Airjet Airjet Airjet > --- UTILITY (3) ------ Large Storage Unit Visual Processing Unit Sensor Array > --- WEAPON (2) ------- Particle Cannon > --- INVENTORY (15) --- Improved Hover Unit Airjet Medium Laser Beam Rifle Assault Rifle Heavy Assault Rifle Improved Assault Rifle Improved Assault Rifle Improved Assault Rifle Improved Assault Rifle Datajack Peak State ------------ > --- POWER ------------ Light Ion Engine > --- PROPULSION ------- Airjet Airjet Airjet > --- UTILITY ---------- Large Storage Unit Visual Processing Unit Sensor Array > --- WEAPON ----------- Particle Cannon Rocket Launcher > --- INVENTORY -------- Ion Engine Airjet Signal Interpreter Medium Laser Beam Rifle Assault Rifle Heavy Assault Rifle Improved Assault Rifle Improved Assault Rifle Improved Assault Rifle Improved Assault Rifle Datajack [Rating: 20] Favorites ----------- Power Ion Engine Engine Ion Engine Propulsion Aluminum Leg Leg Aluminum Leg Hover Unit Airjet Utility Large Storage Unit Device Sensor Array Storage Large Storage Unit Processor Visual Processing Unit Weapon Assault Rifle Energy Gun Medium Laser Energy Cannon Particle Cannon Ballistic Gun Assault Rifle Launcher Rocket Launcher Special Melee Weapon Datajack Build | -11 -10 -10 -9 -9 ------- Run | Yrd Mat Min Mat Min Slots Evolved 2 | . . . 2 . Power . | . . . . . Propulsion 1 | . . . 1 . Utility 1 | . . . 1 . Weapon . | . . . . . Parts Attached 26 | 6 2 . 18 . Power 5 | 2 . . 3 . Engine 5 | 2 . . 3 . Core . | . . . . . Reactor . | . . . . . Propulsion 8 | 2 . . 6 . Treads . | . . . . . Leg 3 | 2 . . 1 . Wheel . | . . . . . Hover 5 | . . . 5 . Flight . | . . . . . Utility 5 | . 2 . 3 . Device 1 | . . . 1 . Storage 1 | . 1 . . . Processor 3 | . 1 . 2 . Hackware . | . . . . . Protection . | . . . . . Artifact . | . . . . . Weapon 8 | 2 . . 6 . Energy Gun 1 | 1 . . . . Energy Cannon 2 | . . . 2 . Ballistic Gun 1 | 1 . . . . Ballistic Cannon . | . . . . . Launcher 3 | . . . 3 . Special Weapon . | . . . . . Impact Weapon . | . . . . . Slashing Weapon . | . . . . . Piercing Weapon . | . . . . . Special Melee Weapon 1 | . . . 1 . Unidentified Prototypes . | . . . . . Parts Lost 3 | . . . 2 1 Power 2 | . . . 2 . Propulsion . | . . . . . Utility . | . . . . . Weapon 1 | . . . . 1 Highest Loss Streak 1 | . . . 1 1 To Critical Strikes . | . . . . . Average Slot Usage (%) 91 | . 92 100 85 98 Engine 12 | . 14 14 10 11 Leg 23 | . 28 28 19 . Hover 5 | . . . 9 33 Device 1 | . . . 2 11 Storage 12 | . 13 14 11 11 Processor 11 | . 7 14 11 11 Energy Gun 8 | . 14 14 1 . Energy Cannon 4 | . . . 8 11 Ballistic Gun 8 | . 14 14 3 . Launcher 3 | . . . 7 9 Naked Turns . | . . . . . Heaviest Build 34 | 9 29 29 34 34 Greatest Support 30 | 20 20 20 30 24 Greatest Overweight (x) 4 | . 1 1 4 1 Average Overweight (x) . | . . 1 1 1 Largest Inventory Capacity 15 | 5 15 15 15 15 Average Capacity 14 | 5 14 15 15 15 Most Carried 15 | 2 9 10 15 11 Average Carried 9 | . 6 9 11 11 Final Capacity 15 | 5 15 15 15 15 Final Carried 11 | 2 9 10 11 11 Class Distribution -------------------- 100% | Mutant Dominant Class ---------------- Mutant | -10/Materials Mutant | -10/Mines Mutant | -9/Materials Mutant | -9/Mines Resources | -11 -10 -10 -9 -9 ----------- Run | Yrd Mat Min Mat Min Matter Collected 644 | 264 45 . 293 42 Remotely . | . . . . . Salvage Created 929 | 38 187 . 641 63 Parts 73 | 4 10 . 58 1 Haulers Intercepted . | . . . . . Recyclers Shooed 2 | . 1 . 1 . Parts Field Recycled . | . . . . . Retrieved Matter . | . . . . . Parts Self-Destructed . | . . . . . Prevented . | . . . . . Kills | -11 -10 -10 -9 -9 ------- Run | Yrd Mat Min Mat Min Combat Hostiles Destroyed 19 | 1 4 . 12 2 Guns 5 | 1 4 . . . Cannons 9 | . . . 8 1 AOE 5 | . . . 4 1 Classes Destroyed 9 | 1 2 . 6 . Worker 3 | . . . 3 . Builder 3 | . . . 3 . Recycler 1 | . . . 1 . Operator 1 | . . . 1 . Watcher 5 | . 1 . 4 . Swarmer 1 | . 1 . . . Grunt 13 | 1 3 . 8 1 Brawler 2 | . . . 1 1 Sentry 3 | . . . 3 . Best Kill Streak 5 | 1 3 . 5 2 Combat Bots Only 3 | 1 3 . 2 2 Max Kills in Single Turn 3 | 1 1 . 3 1 Gunslinging . | . . . . . Exploded 1 | . . . 1 1 Melee . | . . . . . Uniques/NPCs Destroyed . | . . . . . Combat | -11 -10 -10 -9 -9 -------- Run | Yrd Mat Min Mat Min Hostile Shots Fired 53 | 2 10 . 35 6 Missed 13 | 1 4 . 7 1 Damage Taken 672 | 10 65 . 435 162 Core 104 | . . . 74 30 Absorbed by Shields . | . . . . . Regen/Repaired (Parts) 39 | . . . 39 . Core Remaining (%) 100 | 100 . 100 . . Volleys Fired 62 | 2 9 . 44 7 Largest 2 | 2 2 . 2 2 Hottest 101 | 70 70 . 101 101 Shots Fired 100 | 4 18 . 65 13 Gun 34 | 4 18 . 12 . Cannon 47 | . . . 40 7 Launcher 19 | . . . 13 6 Special . | . . . . . Kinetic 21 | 2 9 . 10 . Thermal 60 | 2 9 . 42 7 Explosive 19 | . . . 13 6 Electromagnetic . | . . . . . Robot Hit Streak 8 | 2 4 . 8 2 Robot Miss Streak 7 | 2 7 . 4 1 Penetration Max . | . . . . . Secondary Targets 2 | . 2 . . . Max Gunslinging Chain 1 | . 1 . . . Shots Hit Robots 49 | 2 8 . 34 5 Core Hits 46 | 2 9 . 31 4 Critical Kills . | . . . . . Critical Parts Destroyed . | . . . . . Critical Strikes 1 | . 1 . . . Burn 1 | . 1 . . . Melee Attacks . | . . . . . Impact . | . . . . . Slashing . | . . . . . Piercing . | . . . . . Sneak Attacks . | . . . . . Combat Hostiles . | . . . . . Follow-up Attacks . | . . . . . Damage Inflicted 1848 | 30 115 . 1315 388 Guns 185 | 27 97 . 61 . Cannons 613 | . . . 531 82 Explosions 1015 | . . . 709 306 Melee . | . . . . . Ramming 35 | 3 18 . 14 . Kinetic 137 | 15 61 . 61 . Thermal 661 | 12 36 . 531 82 Explosive 1015 | . . . 709 306 Electromagnetic . | . . . . . Impact . | . . . . . Slashing . | . . . . . Piercing . | . . . . . Highest Corruption 1 | . . . 1 1 Average Corruption 1 | . . . 1 1 Corruption Purged . | . . . . . Corruption Blocked . | . . . . . Effects 6 | . . . 5 1 Matter Fused 3 | . . . 2 1 Heat Flow Errors 1 | . . . 1 . Energy Discharges 1 | . . . 1 . Weapon Failures 1 | . . . 1 . Overload Shots . | . . . . . Overflow Damage 6 | . . . 6 . Projectiles . | . . . . . Explosions 6 | . . . 6 . Melee . | . . . . . Knockbacks . | . . . . . Impact . | . . . . . Kinetic . | . . . . . Secondary . | . . . . . Self-Inflicted Damage 195 | . . . 90 105 Shots 5 | . . . 2 3 Rammed 2 | . . . 2 . Targets Rammed 6 | 1 2 . 3 . Kicked 4 | 1 2 . 1 . Crushed . | . . . . . Highest Temperature 216 | 24 72 . 216 88 Average Temperature 47 | 14 29 . 56 27 Received Heat Transfer 219 | 6 36 . 144 33 Effects 1 | . . . 1 . Energy Bleed 1 | . . . 1 . Siege Activations . | . . . . . Robots Corrupted . | . . . . . Combat Hostiles . | . . . . . Parts Fried . | . . . . . Impact Corruptions . | . . . . . Robots Melted . | . . . . . Combat Hostiles . | . . . . . Parts Melted 1 | . . . 1 . Heat Transferred 1332 | 37 185 . 962 148 Parts Sabotaged . | . . . . . Parts Stolen . | . . . . . Parts Stripped . | . . . . . Power Chain Reactions . | . . . . . Alert | -11 -10 -10 -9 -9 ------- Run | Yrd Mat Min Mat Min Peak Influence 437 | 20 151 10 437 220 Initial 114 | . 13 . . 114 Average 101 | 4 42 1 201 176 Maximum Alert Level 2 | . . . 2 1 Low Security (%) 76 | 100 100 100 48 49 Level 1 17 | . . . 38 50 Level 2 5 | . . . 12 . Level 3 . | . . . . . Level 4 . | . . . . . Level 5 . | . . . . . High Security . | . . . . . Max Security . | . . . . . Squads Dispatched 5 | . 2 . 3 . Investigation 3 | . 2 . 1 . Extermination . | . . . . . Reinforcement 2 | . . . 2 . Assault . | . . . . . Garrison . | . . . . . Intercept . | . . . . . Searches Triggered . | . . . . . Construction Impeded . | . . . . . Haulers Reinforced . | . . . . . Active Scanning Responses . | . . . . . Cargo Convoy Interrupts . | . . . . . Stealth | -11 -10 -10 -9 -9 --------- Run | Yrd Mat Min Mat Min Distress Signals 5 | . 3 . 2 . Communications Jammed . | . . . . . Distress Signals . | . . . . . Times Spotted 35 | 1 7 . 22 5 Peak Tracking Total 4 | 1 3 . 4 3 Tactical Retreats 1 | . 1 . . . Traps | -11 -10 -10 -9 -9 ------- Run | Yrd Mat Min Mat Min Traps Triggered 2 | . 1 . 1 . Indirectly . | . . . . . Trap Hack Attempts 32 | . . . 32 . Triggered . | . . . . . Disarmed . | . . . . . Reprogrammed 1 | . . . 1 . Reused . | . . . . . Traps Extracted . | . . . . . Installed . | . . . . . Triggered 1 | . . 1 . . Machines | -11 -10 -10 -9 -9 ---------- Run | Yrd Mat Min Mat Min Machines Disabled 11 | . . . 10 1 Max in Single Turn 2 | . . . 2 1 Machines Repaired . | . . . . . Machines Dismantled . | . . . . . Machines Sabotaged . | . . . . . Overloaded Fab Kills . | . . . . . Hacking | -11 -10 -10 -9 -9 --------- Run | Yrd Mat Min Mat Min Machines Accessed 6 | . 3 . 3 . Terminals 4 | . 3 . 1 . Fabricators . | . . . . . Repair Stations 2 | . . . 2 . Recycling Units . | . . . . . Scanalyzers . | . . . . . Garrison Access . | . . . . . Total Hacks 18 | . 9 . 9 . Successful 13 | . 7 . 6 . Failed 5 | . 2 . 3 . Catastrophic . | . . . . . Database Lockouts . | . . . . . Manual . | . . . . . Terminals 10 | . 9 . 1 . Fabricators . | . . . . . Repair Stations 8 | . . . 8 . Recycling Units . | . . . . . Scanalyzers . | . . . . . Garrison Access . | . . . . . Terminal Hacks 8 | . 7 . 1 . Record 4 | . 4 . . . Prototype ID Bank 1 | . 1 . . . Hauler Manifests 1 | . 1 . . . Zone Layout 2 | . 1 . 1 . Fabricator Hacks . | . . . . . Repair Station Hacks 5 | . . . 5 . Scan Component 3 | . . . 3 . Repair 2 | . . . 2 . Recycling Unit Hacks . | . . . . . Scanalyzer . | . . . . . Garrison Access Hacks . | . . . . . Unauthorized Hacks . | . . . . . Terminals . | . . . . . Fabricators . | . . . . . Repair Stations . | . . . . . Recycling Units . | . . . . . Scanalyzers . | . . . . . Garrison Access . | . . . . . Data Cores Recovered . | . . . . . Used . | . . . . . Hacking Detections 4 | . 2 . 2 . Full Trace Events 3 | . 2 . 1 . Feedback Events . | . . . . . Feedback Blocked . | . . . . . Robot Schematics Acquired . | . . . . . Robots Built . | . . . . . Authchips . | . . . . . Time . | . . . . . Total Robot Build Rating . | . . . . . Part Schematics Acquired . | . . . . . Parts Built . | . . . . . Authchips . | . . . . . Time . | . . . . . Total Part Build Rating . | . . . . . Parts Repaired 2 | . . . 2 . Time 70 | . . . 70 . Parts Recycled . | . . . . . Recycled Matter . | . . . . . Retrieved Matter . | . . . . . Retrieved Components . | . . . . . Parts Scanalyzed . | . . . . . Part Schematics Acquired . | . . . . . Parts Damaged . | . . . . . Bothacking | -11 -10 -10 -9 -9 ------------ Run | Yrd Mat Min Mat Min Used RIF Installer . | . . . . . Robots Hacked . | . . . . . Non-combat . | . . . . . Combat . | . . . . . Robot Hacks Applied . | . . . . . Relay Couplers Released . | . . . . . Fabnet Peak Effective % . | . . . . . Robots Rewired . | . . . . . Allies Hacked . | . . . . . Hacks Repelled . | . . . . . Allies | -11 -10 -10 -9 -9 -------- Run | Yrd Mat Min Mat Min Total Allies . | . . . . . Largest Group . | . . . . . Highest-Rated Group . | . . . . . Highest-Rated Ally . | . . . . . Total Orders . | . . . . . Ally Attacks . | . . . . . Total Damage . | . . . . . Kills . | . . . . . Allies Corrupted . | . . . . . Allies Melted . | . . . . . Intel | -11 -10 -10 -9 -9 ------- Run | Yrd Mat Min Mat Min Robot Analysis Total . | . . . . . Derelict Logs Recovered 2 | . . 2 . . Drone Launches . | . . . . . Drone Recoveries . | . . . . . Exploration | -11 -10 -10 -9 -9 ------------- Run | Yrd Mat Min Mat Min Turns Passed 2021 | 114 452 533 863 59 Spaces Moved 1026 | 90 220 281 401 34 Core 19 | 19 . . . . Treads . | . . . . . Legs 814 | 71 220 281 242 . Wheels . | . . . . . Hover 193 | . . . 159 34 Flight . | . . . . . Fastest Speed 50 | 50 120 190 112 112 Average Speed 169 | 105 187 190 164 112 Slowest Speed 300 | 120 190 190 300 112 Overloaded Moves . | . . . . . Propulsion Burnouts . | . . . . . Robots Hopped . | . . . . . Cave-ins Triggered . | . . . . . Exploration Rate (%) 30 | 6 38 58 37 14 Regions Visited 4 Branch Regions 2 Pre-discovered Areas 1 | . . 1 . . Known Exits Taken . | . . . . . Unknown Exits Taken 4 | 1 1 1 1 . Scrap Searched . | . . . . . Spaces Dug . | . . . . . Terrain Destroyed 110 | . . . 59 51 Melee . | . . . . . Projectile 1 | . . . . 1 AOE 109 | . . . 59 50 Terrain Rammed . | . . . . . Walls Destroyed . | . . . . . Machines Disabled . | . . . . . Actions | -11 -10 -10 -9 -9 --------- Run | Yrd Mat Min Mat Min Total 1198 | 102 240 281 534 41 Wait 16 | . . . 16 . Move 1022 | 89 219 280 400 34 Hop . | . . . . . Pick Up 27 | 3 8 1 15 . Fast Attach 6 | 5 1 . . . Attach 7 | . 1 . 6 . Detach . | . . . . . Swap 13 | 1 . . 12 . Drop 7 | 1 . . 6 . Fire 62 | 2 9 . 44 7 Melee . | . . . . . Ram 2 | . . . 2 . Kick 4 | 1 2 . 1 . Crush . | . . . . . Escape Stasis . | . . . . . Rewire . | . . . . . Trap 32 | . . . 32 . Miscellaneous . | . . . . . Route ------- -11/Scrapyard -10/Materials (discovered 2 exits: *Mat / [*Min]) -10/Mines -9/Materials -9/Mines History --------- Turn | Location | Event 2 | -11/Scrapyard | Met Revision 17 73 | -11/Scrapyard | Discovered new exit (range 8) 115 | -11/Scrapyard | Entered Materials 313 | -10/Materials | Met 8R-AWN 317 | -10/Materials | Build established: Mutant 359 | -10/Materials | Discovered new exit (range 7) 409 | -10/Materials | Discovered new exit (range 10) 567 | -10/Materials | Entered Mines 569 | -10/Mines | Followed 8R-AWN into the Mines 928 | -10/Mines | Learned location of Recycling (-7) 942 | -10/Mines | Learned Materials stockpile data 985 | -10/Mines | Received a Rocket Launcher from a helpful Derelict 1068 | -10/Mines | Discovered new exit (range 10) 1100 | -10/Mines | Entered Materials 1100 | -9/Materials | Evolved 2 slots: Propulsion x1, Utility x1 1580 | -9/Materials | Repaired Rocket Launcher 1654 | -9/Materials | Discovered new exit (range 17) 1888 | -9/Materials | Repaired Airjet? 1963 | -9/Materials | Entered Mines 2022 | -9/Mines | Self-destructed Last Messages --------------- >>Scan(Broken Airjet) Scanning Broken Airjet... Ready to Repair: Broken Airjet Rating: 3 Time: 53 ALERT: Suspicious activity at Repair Station M001. Dispatching Investigation squad. LOCATION=UNKNOWN GOAL=ESCAPE K-01 Serf collects debris. System corrupted: Matter fused (-5). K-01 Serf collects debris. G-34 Mercenary destroyed. Plasma Injector explodes. B-36 Bruiser destroyed. Acquired 42 matter. The unstable cave ceiling collapses. K-01 Serf collects debris. Rocket Launcher destroyed. Map ----- +----------------------------------------------------+ | ?????????????????????????????????????????????????? | | ?????????????????????????????????????????????????? | | ?????????????????????????????????????????????????? | | ?????????????????????????????????????????????????? | | ?????????????????????????????????????????????????? | | ?????????????????????????????????????????????????? | | ?????????????????????????????????????????????????? | | ?????????????????????????????????????????????????? | | ?????????????????????????????????????????????????? | | ?????????????????????????????????????????????????? | | ?????????????????????????????????????????????????? | | ?????????????????????????????????????????????????? | | ?????????????????????????????????????????????????? | | ?????????????????????????????????????????????????? | | ???????????????????????????????????????######????? | | ???????????????????????????????????????# ????? | | ???????????????????????????????????????# ????? | | ??????????????????????????????###??????# ?????? | | ?????????????????????????????? #??????# ?????? | | ??????????????????????????????# #??????? ?????? | | ????????????????????????????### #???????# #?????? | | ????????????????????????##### ##??????# #?????? | | ???????????????????????## ######## ####### | | ???????????????????????# $ # | | ???????????????????????# ####???# | | ???????????????????????# @ #### # | | ??????????????????????# g = % | | ??????????????????????# g k | | ??????????????????????# g ## ### | | ??????????????????????# ### ####??### """ | | ??????????????????????# ?### #????????# """ | | ??????????????????????## ###??###????????# """ | | ???????????????????????# ???????????????# | | ???????????????????????# ???????????????####### | | ???????????????????????# ?????????????????????? | | ???????????????????????# ?????????????????????? | | ???????????????????????# #????????????????????? | | ???????????????????????# #????????????????????? | | ???????????????????????# #????????????????????? | | ???????????????????????# #????????????????????? | | ????????????????????????#####????????????????????? | | ?????????????????????????????????????????????????? | | ?????????????????????????????????????????????????? | | ?????????????????????????????????????????????????? | | | | | | | | | | | | | +----------------------------------------------------+ Best States ------------- Heat Dissipation 28 Energy Generation 10 Energy Capacity 250 Matter Stores 300 Matter Capacity 300 Sight Range 18 Robot Scan Range 14 Terrain Scan Density 10 Evasion (%) 55 Item Schematics ----------------- None Robot Schematics ------------------ None Fabricated ------------ Nothing Alien Tech Used ----------------- None Achievements -------------- Hehehe Part-time Mechanic Shopping List Challenges ------------ None Game ------ Seed MasterMagneticTrap Manual? 0 Play Time 00:22:24 Cumulative 2.3 hours Start 2024.04.12 @ 13:52:25 End 2024.04.12 @ 14:41:02 Sessions 1 Manual Loads 0 Difficulty Rogue Special Mode None Game No. 3 Rogue 3 Adventurer 0 Explorer 0 Win Type - Total 0 Types 0/0/0/0/0/0/0/0/0 Lore% 1 Gallery% 4 Achievement% 5 Wizard Run 0 Options --------- Layout 1 ASCII 0 Keyboard 0 Movement Arrows Keybinds 0 Fullscreen 1 Font 32/SmallcapsGlow Map View 77x35 Zoom Use 0% Tactical HUD 0 Map Filters NONE Filters NONE Steam 1 RUN: 769a462b-c618-4905-ac2e-66398e080066